bitfinex-derivatives/quotes_SOLF0:USTF0_20260227
["timestamp","ask_amount","ask_price","bid_price","bid_amount"]
[1772168410637,10.2789,87.555,87.511,10.69452437]
[1772168412035,3.34179058,87.53,87.435,27.94250269]
[1772168412232,3.34179058,87.53,87.47,3.34179058]
[1772168412636,10.59952544,87.554,87.49,3.34179058]
[1772168412834,48.79597934,87.6,87.49,3.34179058]
[1772168412835,3.34179058,87.55,87.49,3.34179058]
[1772168413037,3.34179058,87.53,87.47,3.34179058]
[1772168413439,3.34179058,87.53,87.48,3.34179058]
[1772168413938,10.2834,87.517,87.46,3.34179058]
[1772168414132,10.59952544,87.557,87.491,5.32959705]
[1772168414339,3.34179058,87.54,87.491,5.32959705]
[1772168414540,8.61441677,87.555,87.491,5.32959705]
[1772168414730,3.34179058,87.56,87.501,5.32959705]
[1772168414929,10.2806,87.541,87.501,5.32959705]
[1772168415138,10.59952544,87.574,87.511,5.32959705]
[1772168415437,3.34179058,87.56,87.511,5.32959705]
[1772168415738,3.34179058,87.56,87.5,3.34179058]
[1772168415739,3.34179058,87.56,87.501,5.32959705]
[1772168416239,3.34179058,87.56,87.503,5.31932885]
[1772168416543,3.34179058,87.55,87.503,5.31932885]
[1772168416733,3.34179058,87.53,87.486,5.31932885]
[1772168417134,8.61656027,87.566,87.501,5.31932885]
[1772168417343,3.34179058,87.56,87.501,5.31932885]
[1772168417837,3.34179058,87.55,87.511,5.31932885]
[1772168418043,8.61394402,87.567,87.497,5.31932885]
[1772168418240,3.34179058,87.54,87.497,5.31932885]
[1772168418443,14.14966713,87.59,87.481,5.35249135]
[1772168418444,3.34179058,87.53,87.481,5.35249135]
[1772168418940,3.34179058,87.54,87.481,5.35249135]
[1772168419239,21.17086467,87.587,87.481,5.35249135]
[1772168419240,3.34179058,87.53,87.481,5.35249135]
[1772168420040,8.61394402,87.558,87.481,5.35249135]
[1772168420245,3.34179058,87.54,87.491,5.34955754]
[1772168420644,3.34179058,87.55,87.491,5.34955754]
[1772168421246,3.34179058,87.54,87.491,5.34955754]
[1772168421843,3.34179058,87.56,87.501,5.34955754]
[1772168422748,10.2798,87.548,87.501,5.34955754]
[1772168423052,3.34179058,87.54,87.501,5.34955754]
[1772168423953,3.34179058,87.53,87.487,5.35492588]
[1772168424657,3.34179058,87.55,87.5,8.71513522]
[1772168424847,3.34179058,87.56,87.5,8.71513522]
[1772168425050,10.2807,87.54,87.501,5.37334464]
[1772168426347,13.62129058,87.55,87.501,5.37334464]
[1772168427454,10.2795,87.55,87.501,5.37334464]
[1772168429554,13.62009058,87.56,87.51,3.34179058]
[1772168430252,13.62009058,87.56,87.51,8.69728768]
[1772168430448,3.34179058,87.58,87.521,5.3554971]
[1772168430653,8.60904942,87.579,87.521,5.3554971]
[1772168430856,3.34179058,87.58,87.521,5.3554971]
[1772168431052,3.34179058,87.57,87.521,5.3554971]
[1772168431555,3.34179058,87.56,87.507,5.3554971]
[1772168431754,10.2789,87.555,87.507,5.3554971]
[1772168432360,3.34179058,87.56,87.507,5.3554971]
[1772168432361,10.28,87.546,87.507,5.3554971]
[1772168433454,10.2811,87.537,87.471,10.2887]
[1772168433756,10.2811,87.537,87.49,3.34179058]
[1772168434860,10.2811,87.537,87.5,3.34179058]
[1772168435356,10.2811,87.537,87.5,3.34023298]
[1772168436558,2.38772028,87.547,87.5,3.34023298]
[1772168437355,2.38772028,87.547,87.5,33.40205403]
[1772168437960,12.67051079,87.545,87.5,33.40205403]
[1772168438561,2.3865805,87.544,87.5,33.40205403]
[1772168438761,2.3865805,87.544,87.496,3.50864515]
[1772168439562,10.2806,87.541,87.496,3.50864515]
[1772168441660,12.65790272,87.541,87.496,3.50864515]
[1772168441960,10.281,87.537,87.496,3.50864515]
[1772168443755,2.37730272,87.54,87.5,37.18557282]
[1772168443961,10.28,87.546,87.501,3.78351879]
[1772168444160,2.38840346,87.545,87.501,3.78351879]
[1772168444664,2.38840346,87.539,87.491,3.78351879]
[1772168445865,10.2817,87.532,87.491,3.78351879]
[1772168447856,10.2819,87.53,87.491,3.78351879]
[1772168449166,10.2807,87.54,87.491,3.78351879]
[1772168449468,2.37424687,87.557,87.51,37.18557282]
[1772168449670,2.37424687,87.557,87.511,3.78351879]
[1772168449867,33.40205403,87.57,87.521,3.78351879]
[1772168449868,8.58488863,87.569,87.521,3.78351879]
[1772168450073,2.37424687,87.57,87.521,3.78351879]
[1772168450465,10.2773,87.569,87.521,3.78351879]
[1772168450970,2.36830709,87.583,87.531,3.78351879]
[1772168451168,8.58570217,87.582,87.531,3.78351879]
[1772168451368,8.58570217,87.581,87.531,3.78351879]
[1772168451567,8.58570217,87.58,87.531,3.78351879]
[1772168451767,8.58570217,87.579,87.531,3.78351879]
[1772168451968,18.86200217,87.578,87.531,3.78351879]
[1772168452170,8.58570217,87.577,87.531,3.78351879]
[1772168452472,2.36830709,87.582,87.531,3.78351879]
[1772168452670,2.38485562,87.58,87.531,3.78351879]
[1772168452866,10.2767,87.574,87.531,3.78351879]
[1772168455471,2.49910205,87.569,87.51,33.40205403]
[1772168455673,2.49910205,87.569,87.511,3.78351879]
[1772168456975,10.279,87.554,87.511,3.78351879]
[1772168458575,2.49518991,87.558,87.52,33.40205403]
[1772168459168,2.49518991,87.558,87.52,37.18557282]
[1772168459375,2.49518991,87.558,87.521,3.78351879]
[1772168459678,2.49518991,87.579,87.521,3.78351879]
[1772168459885,10.2788,87.557,87.521,3.78351879]
[1772168460278,2.49518991,87.579,87.53,33.40205403]
[1772168460581,10.2764,87.577,87.541,3.78351879]
[1772168461773,10.2742,87.596,87.56,33.40205403]
[1772168462075,2.37425241,87.604,87.561,3.78351879]
[1772168462282,10.2736,87.6,87.561,3.78351879]
[1772168462579,2.37425241,87.604,87.561,3.78351879]
[1772168463675,2.35838556,87.589,87.531,3.78351879]
[1772168464979,10.2756,87.583,87.531,3.78351879]
[1772168465779,2.35838556,87.589,87.541,3.78351879]
[1772168466077,2.35838556,87.589,87.55,33.40205403]
[1772168466285,2.35838556,87.589,87.55,37.18557282]
[1772168467984,2.35838556,87.589,87.55,3.78351879]
[1772168469283,2.38170121,87.602,87.561,3.78351879]
[1772168469781,10.2732,87.604,87.561,3.78351879]
[1772168469980,10.2722,87.613,87.571,3.71052003]
[1772168470985,10.2711,87.622,87.58,33.40205403]
[1772168471174,10.2711,87.622,87.58,37.11257406]
[1772168471375,10.2711,87.622,87.581,3.71052003]
[1772168471686,2.38756931,87.629,87.57,33.40205403]
[1772168471880,33.40205403,87.62,87.57,33.40205403]
[1772168472082,2.38756931,87.629,87.57,33.40205403]
[1772168472387,10.2731,87.605,87.57,33.40205403]
[1772168472790,10.2731,87.605,87.56,33.40205403]
[1772168473883,10.2731,87.605,87.561,3.71052003]
[1772168477397,3.5565475,87.609,87.561,3.71052003]
[1772168478988,3.5565475,87.609,87.563,3.71052003]
[1772168479192,10.2706,87.626,87.511,34.19]
[1772168479193,10.2706,87.626,87.571,3.71052003]
[1772168479494,3.5565475,87.625,87.571,3.71052003]
[1772168480094,3.5565475,87.625,87.581,3.71052003]
[1772168481291,36.95860153,87.64,87.581,3.71052003]
[1772168481494,36.95860153,87.64,87.533,54.7529]
[1772168481495,3.5565475,87.64,87.591,3.71052003]
[1772168481895,3.5565475,87.64,87.6,33.40205403]
[1772168482387,3.5565475,87.64,87.6,3.71052003]
[1772168483500,3.5565475,87.64,87.601,10.2735]
[1772168484001,3.5565475,87.649,87.602,3.71052003]
[1772168484794,3.5565475,87.649,87.605,10.273]
[1772168485000,3.5565475,87.649,87.605,3.71052003]
[1772168488201,3.5565475,87.639,87.587,3.71052003]
[1772168488396,3.5565475,87.619,87.57,37.11257406]
[1772168488600,3.5565475,87.619,87.571,3.71052003]
[1772168488793,3.5565475,87.618,87.562,3.71052003]
[1772168490598,36.95860153,87.61,87.562,3.71052003]
[1772168490902,33.40205403,87.6,87.562,3.71052003]
[1772168491095,33.40205403,87.59,87.543,3.71052003]
[1772168491399,3.5565475,87.589,87.543,3.71052003]
[1772168491600,3.5565475,87.587,87.543,3.71052003]
[1772168492194,33.40205403,87.58,87.523,3.71052003]
[1772168492401,3.5565475,87.579,87.523,3.71052003]
[1772168493298,33.40205403,87.57,87.523,3.71052003]
[1772168494991,3.5565475,87.569,87.523,3.71052003]
[1772168495402,33.40205403,87.56,87.523,3.71052003]
[1772168497303,33.39381229,87.56,87.523,3.71052003]
[1772168497502,33.39381229,87.56,87.505,3.71052003]
[1772168498703,3.5565475,87.569,87.511,3.71052003]
[1772168499907,3.5565475,87.569,87.514,3.76504259]
[1772168500506,33.39381229,87.58,87.538,3.76504259]
[1772168500803,3.82516411,87.589,87.541,3.76504259]
[1772168501004,3.82516411,87.589,87.521,3.76504259]
[1772168501207,33.39381229,87.56,87.501,3.76504259]
[1772168501408,37.2189764,87.57,87.511,3.76504259]
[1772168501806,37.2189764,87.57,87.53,3.76504259]
[1772168501807,3.82516411,87.57,87.53,3.76504259]
[1772168502002,33.39381229,87.58,87.531,3.76504259]
[1772168502709,33.39381229,87.58,87.53,33.39381229]
[1772168502710,3.82516411,87.584,87.534,3.76504259]
[1772168503099,3.82516411,87.584,87.541,3.76504259]
[1772168504102,3.82516411,87.584,87.543,3.76504259]
[1772168505109,3.82516411,87.584,87.547,10.2798]
[1772168506111,3.82516411,87.584,87.543,3.76504259]
[1772168506112,3.82516411,87.599,87.556,10.2788]
[1772168507613,3.82516411,87.599,87.56,37.15885488]
[1772168507913,3.82516411,87.599,87.561,3.76504259]
[1772168508113,3.82516411,87.613,87.561,3.76504259]
[1772168508314,3.82516411,87.613,87.569,10.2772]
[1772168508514,3.82516411,87.613,87.561,3.76504259]
[1772168508814,3.82516411,87.613,87.57,33.39381229]
[1772168512014,3.82516411,87.613,87.555,10.2789]
[1772168512219,3.82516411,87.581,87.531,3.76504259]
[1772168514025,33.39381229,87.58,87.531,3.76504259]
[1772168514220,3.53045113,87.607,87.57,3.33764599]
[1772168514423,3.53045113,87.607,87.56,3.33764599]
[1772168514826,3.53045113,87.595,87.532,3.57842727]
[1772168515026,3.53045113,87.595,87.55,3.33764599]
[1772168516029,13.80575113,87.586,87.55,3.33764599]
[1772168516324,3.53045113,87.586,87.55,3.33764599]
[1772168516525,3.53045113,87.628,87.561,3.57842727]
[1772168516719,3.53045113,87.628,87.57,3.33764599]
[1772168517125,3.53045113,87.614,87.58,3.33764599]
[1772168517626,3.53045113,87.614,87.561,3.57842727]
[1772168517829,3.53045113,87.614,87.57,3.33764599]
[1772168518920,10.2731,87.605,87.57,3.33764599]
[1772168519529,3.53045113,87.604,87.57,3.33764599]
[1772168520431,10.272,87.614,87.58,3.33764599]
[1772168521136,13.80245113,87.614,87.58,3.33764599]
[1772168521429,3.53045113,87.605,87.56,3.33764599]
[1772168521933,3.53045113,87.598,87.548,3.57842727]
[1772168522231,3.53045113,87.598,87.49,20.573]
[1772168522232,3.53045113,87.598,87.55,3.33764599]
[1772168523025,3.53045113,87.583,87.55,3.33764599]
[1772168523729,3.53045113,87.581,87.531,3.57842727]
[1772168524333,3.53045113,87.581,87.54,3.33764599]
[1772168524930,10.2768,87.574,87.54,3.33764599]
[1772168525928,3.53045113,87.595,87.55,3.33764599]
[1772168526434,10.2755,87.585,87.55,3.33764599]
[1772168527430,10.2743,87.594,87.56,3.33764599]
[1772168528733,10.2754,87.586,87.56,3.33764599]
[1772168529134,10.2754,87.586,87.55,3.33764599]
[1772168530329,10.2754,87.586,87.541,3.57842727]
[1772168530330,10.2762,87.578,87.541,3.57842727]
[1772168530532,10.2762,87.578,87.55,3.33764599]
[1772168530738,3.75740293,87.586,87.55,3.33764599]
[1772168532541,10.2747,87.591,87.55,3.33764599]
[1772168533036,10.2747,87.591,87.56,3.33764599]
[1772168534336,10.2737,87.6,87.58,3.33764599]
[1772168534639,3.75740293,87.614,87.58,3.33764599]
[1772168535338,3.75740293,87.614,87.57,3.33764599]
[1772168535733,10.2727,87.609,87.571,3.51337741]
[1772168536637,10.2727,87.609,87.58,3.33764599]
[1772168539332,3.75740293,87.614,87.58,3.33764599]
[1772168540039,3.75740293,87.637,87.58,6.8510234]
[1772168540233,3.75740293,87.637,87.581,3.51337741]
[1772168540936,10.2712,87.621,87.581,3.51337741]
[1772168541340,14.02860293,87.621,87.581,3.51337741]
[1772168541639,10.2714,87.619,87.581,3.51337741]
[1772168541938,3.75740293,87.62,87.59,3.33764599]
[1772168543135,10.2703,87.628,87.591,3.51337741]
[1772168543937,3.75740293,87.633,87.6,3.33764599]
[1772168544730,10.2701,87.631,87.6,3.33764599]
[1772168544931,3.75740293,87.63,87.591,3.51337741]
[1772168545238,3.75740293,87.63,87.59,3.33764599]
[1772168546139,3.75740293,87.629,87.59,3.33764599]
[1772168548239,3.75740293,87.626,87.59,3.33764599]
[1772168551438,3.75740293,87.624,87.59,3.33764599]
[1772168557240,3.75740293,87.624,87.59,3.33319112]
[1772168557843,10.2688,87.642,87.61,3.33319112]
[1772168559445,10.2688,87.642,87.611,3.59120424]
[1772168560743,14.04854449,87.65,87.611,3.59120424]
[1772168560939,3.78074449,87.649,87.546,3.8302864]
[1772168561140,3.78074449,87.649,87.533,20.5628]
[1772168561141,3.78074449,87.649,87.59,3.33319112]
[1772168561341,10.2699,87.632,87.59,3.33319112]
[1772168562148,14.05064449,87.632,87.59,3.33319112]
[1772168562345,3.78074449,87.631,87.59,3.33319112]
[1772168563352,3.78074449,87.631,87.6,3.33319112]
[1772168566959,3.78074449,87.667,87.61,3.33319112]
[1772168567158,3.78074449,87.667,87.611,3.8302864]
[1772168567861,10.2679,87.649,87.611,3.8302864]
[1772168568050,3.78074449,87.652,87.62,3.33319112]
[1772168568249,3.78074449,87.687,87.63,7.16347752]
[1772168568560,3.78074449,87.687,87.64,3.33319112]
[1772168569460,10.2654,87.67,87.64,3.33319112]
[1772168569760,3.78074449,87.687,87.64,3.33319112]
[1772168570860,10.2653,87.671,87.64,3.33319112]
[1772168574261,10.2643,87.68,87.64,3.33319112]
[1772168575057,3.78074449,87.679,87.63,3.8302864]
[1772168575257,3.78074449,87.679,87.631,3.8302864]
[1772168575761,3.78074449,87.679,87.64,3.33319112]
[1772168576659,10.2655,87.67,87.64,3.33319112]
[1772168579562,14.04514449,87.679,87.64,3.33319112]
[1772168579758,3.78074449,87.678,87.64,3.33319112]
[1772168580761,10.2634,87.688,87.651,3.8302864]
[1772168580964,3.78074449,87.702,87.66,7.16347752]
[1772168581165,3.78074449,87.702,87.661,3.8302864]
[1772168581869,10.2623,87.697,87.661,3.8302864]
[1772168582067,3.78074449,87.697,87.661,3.8302864]
[1772168582664,3.78074449,87.697,87.66,3.33319112]
[1772168582864,10.2631,87.69,87.66,3.33319112]
[1772168583959,14.04384449,87.69,87.65,3.33319112]
[1772168584168,3.78074449,87.684,87.64,3.33319112]
[1772168584970,10.2643,87.68,87.64,3.33319112]
[1772168585465,10.2633,87.688,87.65,3.33319112]
[1772168585659,10.2633,87.688,87.651,3.8302864]
[1772168587370,14.04404449,87.688,87.651,3.8302864]
[1772168589572,14.04404449,87.688,87.65,3.33319112]
[1772168589573,10.2624,87.696,87.661,3.8302864]
[1772168589774,3.73301028,87.729,87.68,3.33319112]
[1772168589969,3.73301028,87.729,87.681,3.59756882]
[1772168590476,10.2595,87.721,87.69,3.33319112]
[1772168590767,3.73301028,87.729,87.69,3.33319112]
[1772168591468,3.73301028,87.729,87.691,3.59756882]
[1772168591772,10.2583,87.731,87.691,3.59756882]
[1772168591974,10.257,87.742,87.7,3.33319112]
[1772168592876,13.99001028,87.742,87.7,3.33319112]
[1772168593065,13.99031028,87.74,87.7,3.33319112]
[1772168593264,3.73301028,87.739,87.681,3.59756882]
[1772168594577,10.2586,87.728,87.69,3.33319112]
[1772168596076,3.73301028,87.737,87.69,6.93075994]
[1772168596977,1.98397428,87.774,87.63,34.25]
[1772168596978,3.73301028,87.725,87.68,3.33319112]
[1772168597383,3.73301028,87.725,87.677,3.59756882]
[1772168597976,3.73301028,87.711,87.664,3.59756882]
[1772168598884,10.2612,87.707,87.664,3.59756882]
[1772168599685,3.73301028,87.704,87.66,3.33319112]
[1772168599989,3.73301028,87.704,87.649,3.59756882]
[1772168599990,3.73301028,87.704,87.65,3.33319112]
[1772168600891,10.2627,87.694,87.65,3.33319112]
[1772168601588,10.2627,87.694,87.65,6.93075994]
[1772168602186,13.99461028,87.703,87.66,3.33319112]
[1772168604497,13.99461028,87.703,87.651,13.86506882]
[1772168604498,10.2621,87.699,87.652,3.59756882]
[1772168605595,10.2633,87.689,87.643,3.59756882]
[1772168605795,3.33319112,87.7,87.651,3.59756882]
[1772168605996,7.0662014,87.7,87.651,3.59756882]
[1772168606297,3.73301028,87.7,87.651,3.59756882]
[1772168606599,10.2622,87.698,87.651,3.59756882]
[1772168607297,3.73301028,87.694,87.638,3.59756882]
[1772168607498,3.73301028,87.694,87.641,3.59756882]
[1772168608398,10.2632,87.69,87.641,3.59756882]
[1772168609193,10.2632,87.69,87.65,3.33319112]
[1772168609796,3.73301028,87.694,87.65,3.33319112]
[1772168609994,3.73301028,87.706,87.66,3.33319112]
[1772168610193,3.73301028,87.706,87.651,3.59756882]
[1772168610898,3.73301028,87.702,87.653,10.2673]
[1772168611095,3.73301028,87.702,87.654,3.59756882]
[1772168611300,3.33319112,87.71,87.601,34.25]
[1772168611301,3.73301028,87.717,87.661,3.59756882]
[1772168612899,10.2609,87.709,87.661,3.59756882]
[1772168613097,10.2609,87.709,87.67,3.33319112]
[1772168613791,10.2609,87.709,87.67,6.93075994]
[1772168617690,3.73301028,87.717,87.67,6.93075994]
[1772168617891,10.2618,87.702,87.67,6.93075994]
[1772168618294,3.73301028,87.706,87.66,3.33319112]
[1772168618902,10.2627,87.694,87.66,3.33319112]
[1772168619301,10.2627,87.694,87.66,3.32766286]
[1772168619497,10.2627,87.694,87.66,7.10219232]
[1772168619700,10.2627,87.694,87.661,3.77452946]
[1772168620507,10.2616,87.703,87.661,3.77452946]
[1772168621504,10.2616,87.703,87.671,3.72184637]
[1772168621801,10.2624,87.696,87.66,3.32766286]
[1772168624709,10.2624,87.696,87.658,3.72184637]
[1772168624908,13.98973323,87.696,87.658,3.72184637]
[1772168625810,3.72733323,87.692,87.65,3.32766286]
[1772168626912,3.72733323,87.692,87.651,3.72184637]
[1772168628311,3.72733323,87.692,87.66,3.32766286]
[1772168629306,3.72733323,87.692,87.652,3.72184637]
[1772168629516,3.72733323,87.692,87.64,3.32766286]
[1772168630316,3.72733323,87.692,87.641,3.72184637]
[1772168630911,13.99093323,87.686,87.641,3.72184637]
[1772168633322,3.72733323,87.686,87.65,3.32766286]
[1772168641830,3.72733323,87.686,87.641,3.72184637]
[1772168642325,3.72733323,87.686,87.65,3.32766286]
[1772168642529,3.72733323,87.708,87.67,3.32766286]
[1772168643325,10.2612,87.707,87.67,3.32766286]
[1772168643630,3.32766286,87.72,87.661,3.72184637]
[1772168643631,3.72733323,87.706,87.661,3.72184637]
[1772168643827,3.72733323,87.699,87.651,3.72184637]
[1772168644131,3.72733323,87.685,87.651,3.72184637]
[1772168644331,3.72733323,87.685,87.64,3.32766286]
[1772168645929,3.72733323,87.685,87.641,3.72184637]
[1772168646127,3.72733323,87.685,87.65,3.32766286]
[1772168649637,10.2639,87.683,87.65,3.32766286]
[1772168650338,10.2627,87.693,87.651,3.72305578]
[1772168650535,3.68482015,87.692,87.651,3.72305578]
[1772168652040,10.2635,87.687,87.651,3.72305578]
[1772168654137,3.68482015,87.683,87.64,7.05071864]
[1772168654944,10.2642,87.68,87.641,3.72305578]
[1772168659641,3.68482015,87.679,87.641,3.72305578]
[1772168661038,3.68482015,87.677,87.641,3.72305578]
[1772168661242,3.68482015,87.677,87.631,3.72305578]
[1772168661744,3.68482015,87.669,87.61,3.32766286]
[1772168662143,3.68482015,87.669,87.605,3.72305578]
[1772168662544,3.68482015,87.659,87.605,3.72305578]
[1772168662939,3.68482015,87.649,87.605,13.99605578]
[1772168663146,3.68482015,87.649,87.611,3.72305578]
[1772168663445,3.68482015,87.669,87.621,3.72305578]
[1772168664946,3.68482015,87.668,87.621,3.72305578]
[1772168665844,3.68482015,87.664,87.621,3.72305578]
[1772168666044,3.68482015,87.664,87.61,3.32766286]
[1772168666243,3.68482015,87.664,87.611,3.72305578]
[1772168667146,3.32766286,87.67,87.611,3.72305578]
[1772168667147,13.95172015,87.657,87.611,3.72305578]
[1772168668754,3.68482015,87.657,87.611,3.72305578]
[1772168669348,3.68482015,87.657,87.565,28.44765645]
[1772168669349,10.2659,87.666,87.621,3.72305578]
[1772168669751,10.2659,87.666,87.63,3.32766286]
[1772168670650,10.2659,87.666,87.621,3.72305578]
[1772168671254,10.2668,87.659,87.621,3.72305578]
[1772168671448,450.27158739,87.698,87.61,3.32766286]
[1772168671449,3.68482015,87.658,87.61,3.32766286]
[1772168671646,3.68482015,87.649,87.601,3.72305578]
[1772168673152,10.2694,87.637,87.601,3.72305578]
[1772168675554,10.2698,87.633,87.601,3.72305578]
[1772168675750,10.2698,87.633,87.59,3.32766286]
[1772168675751,3.68482015,87.632,87.59,3.32766286]
[1772168675955,3.68482015,87.629,87.589,3.72305578]
[1772168676451,3.32766286,87.62,87.575,3.72305578]
[1772168676657,3.68482015,87.619,87.575,3.72305578]
[1772168677357,3.68482015,87.631,87.581,3.72305578]
[1772168678156,10.2704,87.628,87.581,3.72305578]
[1772168681657,14.01407931,87.628,87.581,3.72305578]
[1772168685366,10.2712,87.621,87.581,3.72305578]
[1772168686864,3.74367931,87.627,87.581,3.72305578]
[1772168687063,3.74367931,87.627,87.591,3.58643194]
[1772168693373,10.2702,87.63,87.591,3.58643194]
[1772168693671,10.2706,87.626,87.591,3.58643194]
[1772168694368,3.74367931,87.623,87.57,3.33387163]
[1772168694567,3.74367931,87.619,87.57,3.33387163]
[1772168694967,3.74367931,87.619,87.57,6.92030357]
[1772168695169,3.74367931,87.619,87.571,3.58643194]
[1772168695872,16.06823502,87.669,87.61,3.33387163]
[1772168696172,16.06823502,87.659,87.59,3.33387163]
[1772168696373,16.07201302,87.649,87.6,3.33387163]
[1772168696578,16.07201302,87.649,87.59,3.33387163]
[1772168696976,16.07201302,87.639,87.58,3.33387163]
[1772168697175,16.07201302,87.639,87.583,10.2756]
[1772168697675,3.33387163,87.63,87.583,10.2756]
[1772168697870,10.268,87.649,87.521,20.5657]
[1772168697871,3.33387163,87.62,87.571,10.277]
[1772168698073,16.07201302,87.619,87.56,3.33387163]
[1772168699076,16.07201302,87.619,87.561,10.2781]
[1772168699674,16.07201302,87.619,87.57,13.61087163]
[1772168703576,16.07201302,87.619,87.558,10.2785]
[1772168703769,16.07201302,87.619,87.57,3.33387163]
[1772168704979,16.01480048,87.638,87.6,3.33387163]
[1772168705181,16.01480048,87.638,87.53,159.9393]
[1772168705182,16.01480048,87.638,87.61,3.33387163]
[1772168705481,16.01480048,87.669,87.63,3.33387163]
[1772168705778,16.01480048,87.669,87.64,3.33387163]
[1772168706178,16.01087596,87.697,87.64,3.33387163]
[1772168706784,16.01087596,87.686,87.63,3.33387163]
[1772168707592,16.01087596,87.686,87.64,3.33387163]
[1772168708087,16.01178686,87.684,87.64,3.33387163]
[1772168708283,16.01178686,87.684,87.63,3.33387163]
[1772168709494,16.01178686,87.684,87.64,3.33387163]
[1772168709790,16.01178686,87.684,87.65,3.33387163]
[1772168709988,16.01178686,87.684,87.634,10.2696]
[1772168709989,466.28337425,87.698,87.66,3.33387163]
[1772168710786,466.28337425,87.698,87.67,3.33387163]
[1772168710991,16.01902196,87.729,87.68,3.33387163]
[1772168711897,448.74754013,87.736,87.68,3.33387163]
[1772168711898,16.01902196,87.723,87.68,3.33387163]
[1772168712489,16.05453561,87.719,87.67,3.33387163]
[1772168713588,16.05453561,87.713,87.67,3.33387163]
[1772168714690,16.05453561,87.713,87.68,3.33387163]
[1772168720200,10.2607,87.711,87.68,3.33387163]
[1772168720388,16.05116872,87.71,87.68,3.33387163]
[1772168721387,10.2609,87.709,87.68,3.33387163]
[1772168721591,16.05116872,87.708,87.67,3.33387163]
[1772168722994,10.2614,87.705,87.67,3.33387163]
[1772168725094,16.05116872,87.708,87.67,3.33387163]
[1772168725700,10.2611,87.707,87.68,3.33387163]
[1772168726001,16.10673716,87.706,87.66,3.33387163]
[1772168726597,16.14933962,87.704,87.67,3.33387163]
[1772168732910,16.14933962,87.704,87.68,3.33387163]
[1772168734106,16.14933962,87.704,87.66,3.33387163]
[1772168737308,16.14933962,87.704,87.66,13.60037163]
[1772168737512,16.24561124,87.715,87.68,3.33387163]
[1772168739212,16.24561124,87.715,87.675,10.2648]
[1772168739914,16.24561124,87.715,87.68,3.33387163]
[1772168740911,16.24561124,87.715,87.681,10.264]
[1772168742606,16.24561124,87.715,87.68,3.33387163]
[1772168743309,16.24561124,87.715,87.68,3.32642034]
[1772168743709,16.24561124,87.715,87.67,3.32642034]
[1772168745113,16.24561124,87.715,87.68,3.32642034]
[1772168753023,10.2605,87.713,87.68,3.32642034]
[1772168753727,26.49991533,87.713,87.68,3.32642034]
[1772168753920,16.23941533,87.713,87.68,3.32642034]
[1772168757930,16.23941533,87.713,87.68,13.59062034]
[1772168763629,11.11430959,87.709,87.65,3.32642034]
[1772168763824,11.11430959,87.709,87.642,21.20253345]
[1772168764024,11.11430959,87.709,87.65,3.32642034]
[1772168764626,11.11430959,87.709,87.65,13.59402034]
[1772168767629,3.32642034,87.7,87.65,13.59402034]
[1772168767833,11.09986693,87.699,87.65,13.59402034]
[1772168775143,11.09986693,87.699,87.66,3.32642034]
[1772168775337,11.13351525,87.719,87.67,3.32642034]
[1772168776839,11.13351525,87.719,87.67,13.59172034]
[1772168777040,11.13351525,87.719,87.68,3.32642034]
[1772168778945,11.13351525,87.719,87.681,10.2641]
[1772168782346,11.13351525,87.719,87.68,3.32642034]
[1772168782546,11.13351525,87.719,87.672,10.2652]
[1772168783044,11.13351525,87.719,87.68,3.32642034]
[1772168784149,11.12724707,87.731,87.69,3.32642034]
[1772168784947,11.12724707,87.731,87.69,13.58942034]
[1772168785242,11.12724707,87.731,87.69,10.263]
[1772168785442,11.12724707,87.731,87.69,13.58942034]
[1772168789256,11.12724707,87.731,87.7,3.32642034]
[1772168791857,11.12724707,87.731,87.69,10.263]
[1772168791858,11.12724707,87.731,87.69,13.58942034]
[1772168794363,14.4678238,87.73,87.67,3.32642034]
[1772168794660,11.14140346,87.729,87.67,3.32642034]
[1772168795961,11.14140346,87.727,87.672,10.2652]
[1772168797366,11.1417234,87.724,87.672,10.2652]
[1772168798061,11.1417234,87.719,87.672,10.2652]
[1772168798464,11.1417234,87.719,87.67,3.32642034]
[1772168798664,11.1417234,87.719,87.68,3.32642034]
[1772168799964,11.1417234,87.719,87.693,10.2626]
[1772168801866,11.1417234,87.719,87.69,3.32642034]
[1772168802062,11.1417234,87.719,87.64,20.5377]
[1772168802063,11.1417234,87.719,87.68,3.32642034]
[1772168802263,11.1417234,87.719,87.67,3.32642034]
[1772168803868,11.1417234,87.719,87.67,13.59172034]
[1772168805367,11.1417234,87.719,87.67,13.59209545]
[1772168807864,11.1417234,87.719,87.67,3.32679545]
[1772168808162,11.1417234,87.719,87.68,3.32679545]
[1772168808567,11.1417234,87.719,87.67,3.32679545]
[1772168809071,11.1417234,87.719,87.678,10.2644]
[1772168811577,11.1417234,87.719,87.67,10.2654]
[1772168818475,11.1417234,87.719,87.685,10.2636]
[1772168826576,11.1417234,87.719,87.671,10.2652]
[1772168834282,11.1417234,87.719,87.678,10.2644]